[Event "*** Titled Tuesday Blitz"]
[Site "Chess.com"]
[Date "2020.05.19"]
[Round "2"]
[White "MilanJeremic"]
[Black "gvanna"]
[Result "1-0"]
[WhiteElo "2282"]
[BlackElo "2449"]
[TimeControl "180+1"]
[EndTime "12:19:47 PDT"]
[Termination "MilanJeremic won by resignation"]

1. d4 {[%clk 0:03:00.9]} 1... d5 {[%clk 0:02:59.7]} 2. Nf3 {[%clk 0:03:00]} 2...
Nf6 {[%clk 0:02:59.5]} 3. g3 {[%clk 0:03:00.1]} 3... Bf5 {[%clk 0:02:59.2]} 4.
Bg2 {[%clk 0:02:59.9]} 4... e6 {[%clk 0:02:59]} 5. O-O {[%clk 0:02:59.4]} 5...
Be7 {[%clk 0:02:59.1]} 6. Bg5 {[%clk 0:02:58.6]} 6... O-O {[%clk 0:02:58.2]} 7.
Bxf6 {[%clk 0:02:56.5]} 7... Bxf6 {[%clk 0:02:58.3]} 8. c3 {[%clk 0:02:56.6]}
8... h6 {[%clk 0:02:56.7]} 9. Nbd2 {[%clk 0:02:56.1]} 9... Nd7 {[%clk
0:02:56.3]} 10. Re1 {[%clk 0:02:56]} 10... c5 {[%clk 0:02:56.1]} 11. e3 {[%clk
0:02:51.7]} 11... Rc8 {[%clk 0:02:55.4]} 12. Nb3 {[%clk 0:02:48.5]} 12... Qb6
{[%clk 0:02:53.7]} 13. Qd2 {[%clk 0:02:42.8]} 13... a5 {[%clk 0:02:49.8]} 14.
Nc1 {[%clk 0:02:42]} 14... a4 {[%clk 0:02:47.5]} 15. a3 {[%clk 0:02:41.1]} 15...
Rfe8 {[%clk 0:02:43]} 16. Bf1 {[%clk 0:02:38.6]} 16... Rcd8 {[%clk 0:02:34]} 17.
Bd3 {[%clk 0:02:37]} 17... Bg4 {[%clk 0:02:30.1]} 18. Be2 {[%clk 0:02:23.9]}
18... Bf5 {[%clk 0:02:25.7]} 19. Bd3 {[%clk 0:02:23.3]} 19... Bg4 {[%clk
0:02:25.7]} 20. Be2 {[%clk 0:02:22.2]} 20... Qc7 {[%clk 0:02:18.8]} 21. Nd3
{[%clk 0:02:19.7]} 21... b6 {[%clk 0:02:13.4]} 22. Rac1 {[%clk 0:02:16.9]} 22...
Bf5 {[%clk 0:02:11.8]} 23. Nf4 {[%clk 0:02:12.5]} 23... Qc6 {[%clk 0:02:04.1]}
24. Bd3 {[%clk 0:02:10.1]} 24... Bg4 {[%clk 0:02:02.6]} 25. Be2 {[%clk
0:02:09.8]} 25... g5 {[%clk 0:02:02.6]} 26. Nd3 {[%clk 0:02:09.1]} 26... Bf5
{[%clk 0:01:56.4]} 27. Nde5 {[%clk 0:02:06.2]} 27... Nxe5 {[%clk 0:01:47.5]} 28.
Nxe5 {[%clk 0:02:06]} 28... Bxe5 {[%clk 0:01:42.2]} 29. dxe5 {[%clk 0:02:05.5]}
29... Qc7 {[%clk 0:01:42.2]} 30. f4 {[%clk 0:02:04.7]} 30... Kg7 {[%clk
0:01:29]} 31. Bb5 {[%clk 0:02:03.6]} 31... Rf8 {[%clk 0:01:25.6]} 32. Bxa4
{[%clk 0:02:00.8]} 32... f6 {[%clk 0:01:26]} 33. exf6+ {[%clk 0:01:59.1]} 33...
Rxf6 {[%clk 0:01:25.7]} 34. Bc2 {[%clk 0:01:58.9]} 34... Rdf8 {[%clk 0:01:18.8]}
35. Bxf5 {[%clk 0:01:56.5]} 35... Rxf5 {[%clk 0:01:19.2]} 36. c4 {[%clk
0:01:46.5]} 36... Qc6 {[%clk 0:01:07.7]} 37. cxd5 {[%clk 0:01:45.3]} 37... exd5
{[%clk 0:01:07]} 38. Qc3+ {[%clk 0:01:42.7]} 38... Kg8 {[%clk 0:01:05]} 39. Rcd1
{[%clk 0:01:41.8]} 39... Qe6 {[%clk 0:00:53.9]} 40. b4 {[%clk 0:01:34.8]} 40...
Rc8 {[%clk 0:00:47.1]} 41. bxc5 {[%clk 0:01:32.1]} 41... bxc5 {[%clk 0:00:47.1]}
42. a4 {[%clk 0:01:27.4]} 42... h5 {[%clk 0:00:42.5]} 43. a5 {[%clk 0:01:24.6]}
43... h4 {[%clk 0:00:42.6]} 44. Rb1 {[%clk 0:01:22.5]} 44... hxg3 {[%clk
0:00:40.5]} 45. hxg3 {[%clk 0:01:22]} 45... Qe4 {[%clk 0:00:34.3]} 46. Rb7
{[%clk 0:01:14.7]} 46... Rf7 {[%clk 0:00:31.9]} 47. Rxf7 {[%clk 0:01:09.2]}
47... Kxf7 {[%clk 0:00:31.9]} 48. Kf2 {[%clk 0:01:05.4]} 48... g4 {[%clk
0:00:29.7]} 49. Rd1 {[%clk 0:00:46.6]} 49... Qf3+ {[%clk 0:00:24.8]} 50. Ke1
{[%clk 0:00:44.1]} 50... Qxg3+ {[%clk 0:00:24.3]} 51. Kd2 {[%clk 0:00:43]} 51...
Qg2+ {[%clk 0:00:21.5]} 52. Kc1 {[%clk 0:00:41.9]} 52... Qe4 {[%clk 0:00:20.8]}
53. a6 {[%clk 0:00:30.2]} 53... g3 {[%clk 0:00:20.4]} 54. Qc2 {[%clk 0:00:25.3]}
54... Qxc2+ {[%clk 0:00:18.7]} 55. Kxc2 {[%clk 0:00:25.1]} 55... Ke6 {[%clk
0:00:18.9]} 56. Rg1 {[%clk 0:00:24.5]} 56... Rg8 {[%clk 0:00:18.8]} 57. a7
{[%clk 0:00:24]} 57... Kf5 {[%clk 0:00:18.7]} 58. Rxg3 {[%clk 0:00:23.2]} 58...
Ra8 {[%clk 0:00:18.8]} 59. Rg7 {[%clk 0:00:22]} 59... Ke4 {[%clk 0:00:17.9]} 60.
Re7+ {[%clk 0:00:21.9]} 60... Kf3 {[%clk 0:00:18.1]} 61. Kd3 {[%clk 0:00:19.9]}
61... Rc8 {[%clk 0:00:17.1]} 62. Rb7 {[%clk 0:00:18.7]} 62... Ra8 {[%clk
0:00:16.4]} 63. Kd2 {[%clk 0:00:18.3]} 63... Ke4 {[%clk 0:00:16.3]} 64. Re7+
{[%clk 0:00:17.6]} 64... Kf3 {[%clk 0:00:16.6]} 65. f5 {[%clk 0:00:17.3]} 65...
d4 {[%clk 0:00:14.5]} 66. exd4 {[%clk 0:00:16.7]} 66... cxd4 {[%clk 0:00:15]}
67. f6 {[%clk 0:00:16.7]} 67... Kg4 {[%clk 0:00:11.3]} 68. f7 {[%clk 0:00:16.6]}
68... Rf8 {[%clk 0:00:10.6]} 69. Re8 {[%clk 0:00:15.4]} 69... Rxf7 {[%clk
0:00:11.2]} 70. a8=Q {[%clk 0:00:14.9]} 1-0

[Event "*** Titled Tuesday Blitz"]
[Site "Chess.com"]
[Date "2020.05.19"]
[Round "2"]
[White "MITerryble"]
[Black "carvillshill"]
[Result "1/2-1/2"]
[WhiteElo "2842"]
[BlackElo "2541"]
[TimeControl "180+1"]
[EndTime "12:19:48 PDT"]
[Termination "Game drawn - insufficient material"]

1. d4 {[%clk 0:03:00.6]} 1... Nf6 {[%clk 0:02:59.7]} 2. Nf3 {[%clk 0:03:01.1]}
2... g6 {[%clk 0:02:59.6]} 3. Bg5 {[%clk 0:03:01.2]} 3... Bg7 {[%clk 0:02:59.5]}
4. c3 {[%clk 0:03:01.6]} 4... O-O {[%clk 0:02:59.7]} 5. Nbd2 {[%clk 0:03:02]}
5... d6 {[%clk 0:03:00.1]} 6. e4 {[%clk 0:03:02.5]} 6... c5 {[%clk 0:03:00.2]}
7. dxc5 {[%clk 0:03:03.4]} 7... dxc5 {[%clk 0:03:00.1]} 8. Bc4 {[%clk 0:03:04]}
8... Nc6 {[%clk 0:03:00.3]} 9. Qe2 {[%clk 0:03:04.4]} 9... Qc7 {[%clk
0:03:00.4]} 10. O-O {[%clk 0:03:03.8]} 10... h6 {[%clk 0:03:00.8]} 11. Bxf6
{[%clk 0:03:04]} 11... Bxf6 {[%clk 0:03:00.5]} 12. Qe3 {[%clk 0:03:03.9]} 12...
Kg7 {[%clk 0:02:43.2]} 13. Qxc5 {[%clk 0:03:03.6]} 13... b6 {[%clk 0:02:43.4]}
14. Qe3 {[%clk 0:03:03.5]} 14... Bb7 {[%clk 0:02:42.5]} 15. Rfe1 {[%clk
0:02:52.5]} 15... Rfd8 {[%clk 0:02:42]} 16. Bf1 {[%clk 0:02:42.8]} 16... Ne5
{[%clk 0:02:34.8]} 17. Nxe5 {[%clk 0:02:38.8]} 17... Bxe5 {[%clk 0:02:34.4]} 18.
g3 {[%clk 0:02:24.4]} 18... e6 {[%clk 0:02:34.6]} 19. Rad1 {[%clk 0:02:12.1]}
19... Bd6 {[%clk 0:02:24.5]} 20. Bg2 {[%clk 0:01:58.9]} 20... Bc5 {[%clk
0:02:18.7]} 21. Qe2 {[%clk 0:01:58.8]} 21... e5 {[%clk 0:02:15.8]} 22. Nf1
{[%clk 0:01:48.6]} 22... Rxd1 {[%clk 0:02:07.6]} 23. Rxd1 {[%clk 0:01:48.4]}
23... Rd8 {[%clk 0:02:07.8]} 24. Rxd8 {[%clk 0:01:39.3]} 24... Qxd8 {[%clk
0:02:07.9]} 25. Qd2 {[%clk 0:01:39.7]} 25... Qe7 {[%clk 0:01:49]} 26. Ne3 {[%clk
0:01:39.7]} 26... Qg5 {[%clk 0:01:38.5]} 27. Nc4 {[%clk 0:01:35.2]} 27... Qf6
{[%clk 0:01:34.4]} 28. b4 {[%clk 0:01:32.3]} 28... Bf8 {[%clk 0:01:32.8]} 29.
Qd7 {[%clk 0:01:25.1]} 29... Ba6 {[%clk 0:01:25.1]} 30. Ne3 {[%clk 0:01:23.9]}
30... Be2 {[%clk 0:01:17.9]} 31. h4 {[%clk 0:01:14.4]} 31... a5 {[%clk
0:01:15.6]} 32. Nd5 {[%clk 0:01:12.7]} 32... Qd6 {[%clk 0:01:11.7]} 33. Qxd6
{[%clk 0:00:53]} 33... Bxd6 {[%clk 0:01:11]} 34. a3 {[%clk 0:00:53.5]} 34...
axb4 {[%clk 0:01:11.1]} 35. axb4 {[%clk 0:00:48.3]} 35... b5 {[%clk 0:01:07.3]}
36. Bf1 {[%clk 0:00:47.6]} 36... Bf3 {[%clk 0:01:07.3]} 37. Bxb5 {[%clk
0:00:37.5]} 37... Bxe4 {[%clk 0:01:07.3]} 38. Ne3 {[%clk 0:00:26]} 38... f5
{[%clk 0:01:06.8]} 39. Nc4 {[%clk 0:00:26.2]} 39... Bc7 {[%clk 0:01:05.4]} 40.
Nd2 {[%clk 0:00:22.1]} 40... Bc2 {[%clk 0:00:54.8]} 41. c4 {[%clk 0:00:19.6]}
41... Bd3 {[%clk 0:00:54.6]} 42. Bc6 {[%clk 0:00:17.3]} 42... e4 {[%clk
0:00:38.4]} 43. c5 {[%clk 0:00:11.2]} 43... Be5 {[%clk 0:00:35]} 44. Nb3 {[%clk
0:00:05.5]} 44... Bc2 {[%clk 0:00:29.8]} 45. Nc1 {[%clk 0:00:05.6]} 45... Bc3
{[%clk 0:00:27.2]} 46. b5 {[%clk 0:00:05.6]} 46... Bd4 {[%clk 0:00:25.2]} 47. b6
{[%clk 0:00:04.3]} 47... Bxc5 {[%clk 0:00:25.7]} 48. b7 {[%clk 0:00:04.8]} 48...
Ba7 {[%clk 0:00:26.2]} 49. Ne2 {[%clk 0:00:04.9]} 49... Kf6 {[%clk 0:00:23.1]}
50. Nf4 {[%clk 0:00:04.5]} 50... g5 {[%clk 0:00:20.8]} 51. Nd5+ {[%clk
0:00:04.9]} 51... Ke5 {[%clk 0:00:19.7]} 52. Nb4 {[%clk 0:00:05.8]} 52... Kd6
{[%clk 0:00:18.4]} 53. hxg5 {[%clk 0:00:02.2]} 53... hxg5 {[%clk 0:00:17.9]} 54.
Nxc2 {[%clk 0:00:02.7]} 54... Kxc6 {[%clk 0:00:17.4]} 55. Nb4+ {[%clk
0:00:03.1]} 55... Kxb7 {[%clk 0:00:17.3]} 56. Nd5 {[%clk 0:00:03.8]} 56... f4
{[%clk 0:00:13.4]} 57. gxf4 {[%clk 0:00:03.7]} 57... gxf4 {[%clk 0:00:12.7]} 58.
Nxf4 {[%clk 0:00:04.6]} 58... e3 {[%clk 0:00:13.1]} 59. fxe3 {[%clk 0:00:04.4]}
59... Bxe3+ {[%clk 0:00:12.8]} 1/2-1/2

[Event "*** Titled Tuesday Blitz"]
[Site "Chess.com"]
[Date "2020.05.19"]
[Round "2"]
[White "Karina_Ivanova"]
[Black "Andro2"]
[Result "1-0"]
[WhiteElo "2212"]
[BlackElo "2412"]
[TimeControl "180+1"]
[EndTime "12:19:49 PDT"]
[Termination "Karina_Ivanova won on time"]

1. Nf3 {[%clk 0:03:00.3]} 1... Nf6 {[%clk 0:02:58.4]} 2. g3 {[%clk 0:03:00.8]}
2... b5 {[%clk 0:02:58]} 3. Bg2 {[%clk 0:03:01.7]} 3... Bb7 {[%clk 0:02:58.4]}
4. d4 {[%clk 0:03:00.9]} 4... e6 {[%clk 0:02:58.5]} 5. a4 {[%clk 0:03:00.4]}
5... b4 {[%clk 0:02:57.7]} 6. c4 {[%clk 0:02:59.7]} 6... d6 {[%clk 0:02:52.1]}
7. O-O {[%clk 0:02:58.2]} 7... Nbd7 {[%clk 0:02:51.8]} 8. b3 {[%clk 0:02:58.2]}
8... c5 {[%clk 0:02:51.5]} 9. Bb2 {[%clk 0:02:57.4]} 9... Be7 {[%clk 0:02:50.4]}
10. Nbd2 {[%clk 0:02:54.5]} 10... O-O {[%clk 0:02:49.2]} 11. Re1 {[%clk
0:02:53.1]} 11... a5 {[%clk 0:02:49.2]} 12. e4 {[%clk 0:02:52]} 12... cxd4
{[%clk 0:02:49.5]} 13. Nxd4 {[%clk 0:02:51.2]} 13... Qb6 {[%clk 0:02:49.7]} 14.
Qe2 {[%clk 0:02:45.5]} 14... Nc5 {[%clk 0:02:41.9]} 15. Rad1 {[%clk 0:02:40]}
15... Rfe8 {[%clk 0:02:39]} 16. h3 {[%clk 0:02:32.4]} 16... Rad8 {[%clk
0:02:32.4]} 17. Kh2 {[%clk 0:02:31.5]} 17... h6 {[%clk 0:02:26.6]} 18. f4 {[%clk
0:02:27.4]} 18... Nfd7 {[%clk 0:02:23.9]} 19. N4f3 {[%clk 0:02:14.6]} 19... Bf6
{[%clk 0:02:22.1]} 20. e5 {[%clk 0:02:09.5]} 20... dxe5 {[%clk 0:02:21.9]} 21.
fxe5 {[%clk 0:02:08.6]} 21... Be7 {[%clk 0:02:22.5]} 22. Bd4 {[%clk 0:01:56.8]}
22... Qc7 {[%clk 0:02:20.7]} 23. Qe3 {[%clk 0:01:41.3]} 23... Nf8 {[%clk
0:02:08.2]} 24. Ng1 {[%clk 0:01:32]} 24... Bxg2 {[%clk 0:02:06.5]} 25. Kxg2
{[%clk 0:01:32.1]} 25... Ng6 {[%clk 0:02:06.1]} 26. Ndf3 {[%clk 0:01:28.2]}
26... Qc6 {[%clk 0:02:02.8]} 27. Ne2 {[%clk 0:01:25]} 27... Nd7 {[%clk
0:01:53.4]} 28. Kh2 {[%clk 0:01:17.1]} 28... Bc5 {[%clk 0:01:50.3]} 29. Nf4
{[%clk 0:01:10.7]} 29... Ne7 {[%clk 0:01:49.2]} 30. Qe4 {[%clk 0:01:00.6]} 30...
Qc7 {[%clk 0:01:44.6]} 31. Be3 {[%clk 0:00:55.4]} 31... Bxe3 {[%clk 0:01:41]}
32. Qxe3 {[%clk 0:00:54.2]} 32... Nf5 {[%clk 0:01:38.6]} 33. Qf2 {[%clk
0:00:48.7]} 33... Nc5 {[%clk 0:01:37.8]} 34. Qc2 {[%clk 0:00:44]} 34... Ne7
{[%clk 0:01:29.3]} 35. Nd4 {[%clk 0:00:34.1]} 35... Rd7 {[%clk 0:01:05.5]} 36.
Nb5 {[%clk 0:00:32.5]} 36... Qc6 {[%clk 0:01:01.6]} 37. Nd6 {[%clk 0:00:30.6]}
37... Red8 {[%clk 0:00:56.7]} 38. Re2 {[%clk 0:00:19.2]} 38... Nc8 {[%clk
0:00:56]} 39. Nxc8 {[%clk 0:00:15.5]} 39... Qxc8 {[%clk 0:00:52.2]} 40. Red2
{[%clk 0:00:14.6]} 40... Rxd2+ {[%clk 0:00:50.9]} 41. Rxd2 {[%clk 0:00:15.2]}
41... Rxd2+ {[%clk 0:00:51.2]} 42. Qxd2 {[%clk 0:00:16.1]} 42... Nxb3 {[%clk
0:00:51.7]} 43. Qd6 {[%clk 0:00:15.3]} 43... Nc5 {[%clk 0:00:45.4]} 44. Qb6
{[%clk 0:00:13.9]} 44... b3 {[%clk 0:00:36.7]} 45. Qxa5 {[%clk 0:00:13.9]} 45...
Nd7 {[%clk 0:00:29.6]} 46. Qb5 {[%clk 0:00:13.2]} 46... Qc7 {[%clk 0:00:20.3]}
47. Qxb3 {[%clk 0:00:12.3]} 47... Nxe5 {[%clk 0:00:18.7]} 48. Qb5 {[%clk
0:00:08.8]} 48... Nxc4 {[%clk 0:00:17.5]} 49. Qe8+ {[%clk 0:00:06.6]} 49... Kh7
{[%clk 0:00:17.4]} 50. Qb5 {[%clk 0:00:05.5]} 50... Nd6 {[%clk 0:00:16.6]} 51.
Qd3+ {[%clk 0:00:04.3]} 51... g6 {[%clk 0:00:15.8]} 52. Qa3 {[%clk 0:00:03.4]}
52... Nc4 {[%clk 0:00:14.6]} 53. Qc1 {[%clk 0:00:02.7]} 53... Qc6 {[%clk
0:00:11.8]} 54. Qc3 {[%clk 0:00:02.2]} 54... Qe4 {[%clk 0:00:08]} 55. a5 {[%clk
0:00:01.7]} 55... Ne5 {[%clk 0:00:07.4]} 56. a6 {[%clk 0:00:01.4]} 56... Nf3+
{[%clk 0:00:07.4]} 57. Kg2 {[%clk 0:00:01.5]} 57... Nd2+ {[%clk 0:00:07.3]} 58.
Kf2 {[%clk 0:00:01.7]} 58... Nc4 {[%clk 0:00:03]} 59. Kf1 {[%clk 0:00:01.2]}
59... Ne3+ {[%clk 0:00:02.6]} 60. Kf2 {[%clk 0:00:01.2]} 60... Nc4 {[%clk
0:00:03.2]} 61. Kf1 {[%clk 0:00:01]} 61... Nb6 {[%clk 0:00:02.3]} 62. Kf2 {[%clk
0:00:01.9]} 1-0

[Event "*** Titled Tuesday Blitz"]
[Site "Chess.com"]
[Date "2020.05.19"]
[Round "2"]
[White "RojonR"]
[Black "FMJoseHerrera"]
[Result "0-1"]
[WhiteElo "2402"]
[BlackElo "2647"]
[TimeControl "180+1"]
[EndTime "12:19:50 PDT"]
[Termination "FMJoseHerrera won by resignation"]

1. e4 {[%clk 0:03:00.9]} 1... c5 {[%clk 0:02:59.6]} 2. Nf3 {[%clk 0:03:00.7]}
2... e6 {[%clk 0:02:59.8]} 3. b3 {[%clk 0:03:00.7]} 3... b6 {[%clk 0:02:58.9]}
4. Bb2 {[%clk 0:03:00.5]} 4... Bb7 {[%clk 0:02:58.4]} 5. Nc3 {[%clk 0:03:01.2]}
5... a6 {[%clk 0:02:54.3]} 6. d4 {[%clk 0:03:01.4]} 6... cxd4 {[%clk 0:02:53.8]}
7. Nxd4 {[%clk 0:03:02.3]} 7... Qc7 {[%clk 0:02:53.8]} 8. Bd3 {[%clk 0:03:02.2]}
8... d6 {[%clk 0:02:53.5]} 9. O-O {[%clk 0:03:01.9]} 9... Nd7 {[%clk 0:02:53.5]}
10. Nce2 {[%clk 0:02:48.6]} 10... Ngf6 {[%clk 0:02:52.3]} 11. Ng3 {[%clk
0:02:48.6]} 11... h5 {[%clk 0:02:52.3]} 12. h4 {[%clk 0:02:12.7]} 12... Be7
{[%clk 0:02:51.5]} 13. Nf3 {[%clk 0:02:07.3]} 13... Rc8 {[%clk 0:02:35.2]} 14.
c4 {[%clk 0:02:06.7]} 14... Ne5 {[%clk 0:02:30.8]} 15. Rc1 {[%clk 0:01:50.6]}
15... Nfg4 {[%clk 0:02:27.6]} 16. Bb1 {[%clk 0:01:42.9]} 16... Bf6 {[%clk
0:02:14.5]} 17. Nxe5 {[%clk 0:01:05.5]} 17... Nxe5 {[%clk 0:02:07.4]} 18. Nxh5
{[%clk 0:00:55.1]} 18... Bxh4 {[%clk 0:01:34.5]} 19. Nxg7+ {[%clk 0:00:54.7]}
19... Ke7 {[%clk 0:01:32.8]} 20. f4 {[%clk 0:00:48.9]} 20... Ng6 {[%clk
0:00:48]} 21. f5 {[%clk 0:00:47.2]} 21... Ne5 {[%clk 0:00:46.7]} 22. fxe6 {[%clk
0:00:43.7]} 22... Bf6 {[%clk 0:00:39.4]} 23. Nf5+ {[%clk 0:00:39.8]} 23... Kxe6
{[%clk 0:00:35.7]} 24. Nd4+ {[%clk 0:00:35.8]} 24... Ke7 {[%clk 0:00:35.5]} 25.
Nf5+ {[%clk 0:00:33.2]} 25... Ke6 {[%clk 0:00:34.9]} 26. Qxd6+ {[%clk
0:00:19.2]} 26... Qxd6 {[%clk 0:00:34]} 27. Nxd6 {[%clk 0:00:19.4]} 27... Nf3+
{[%clk 0:00:31.7]} 28. Rxf3 {[%clk 0:00:18.9]} 28... Bxb2 {[%clk 0:00:32.6]} 29.
Rd1 {[%clk 0:00:18.3]} 29... Rcd8 {[%clk 0:00:31.9]} 30. Rfd3 {[%clk 0:00:18]}
30... Bc6 {[%clk 0:00:22.3]} 31. Nf5 {[%clk 0:00:14.9]} 31... Rxd3 {[%clk
0:00:21.2]} 32. Rxd3 {[%clk 0:00:14.9]} 32... Bxe4 {[%clk 0:00:21.2]} 33. Re3
{[%clk 0:00:15.4]} 33... Kxf5 {[%clk 0:00:21.5]} 34. Rxe4 {[%clk 0:00:15.8]}
34... Kf6 {[%clk 0:00:21.3]} 35. Rf4+ {[%clk 0:00:15.8]} 35... Ke6 {[%clk
0:00:19.8]} 36. Re4+ {[%clk 0:00:16]} 36... Kd6 {[%clk 0:00:20.4]} 37. g4 {[%clk
0:00:15.1]} 37... Be5 {[%clk 0:00:19.7]} 38. Re2 {[%clk 0:00:14.1]} 38... f6
{[%clk 0:00:20.1]} 39. Bf5 {[%clk 0:00:13]} 39... Kc5 {[%clk 0:00:20.4]} 40. Rd2
{[%clk 0:00:11.6]} 40... a5 {[%clk 0:00:20.9]} 41. Rd5+ {[%clk 0:00:09.9]} 41...
Kb4 {[%clk 0:00:21]} 42. Rb5+ {[%clk 0:00:09.9]} 42... Ka3 {[%clk 0:00:21.7]}
43. Kg2 {[%clk 0:00:09]} 43... Bd4 {[%clk 0:00:21.7]} 44. Kf3 {[%clk 0:00:07.5]}
44... Kxa2 {[%clk 0:00:21.6]} 45. Ke4 {[%clk 0:00:07.8]} 45... Bc5 {[%clk
0:00:21.8]} 46. Kd5 {[%clk 0:00:08.1]} 46... Rd8+ {[%clk 0:00:21.9]} 47. Ke6
{[%clk 0:00:08.3]} 47... Rd6+ {[%clk 0:00:22.2]} 48. Kf7 {[%clk 0:00:08.7]}
48... Bb4 {[%clk 0:00:22.5]} 49. Be6 {[%clk 0:00:08.9]} 49... Rc6 {[%clk
0:00:20.7]} 50. Kxf6 {[%clk 0:00:08.2]} 50... Kxb3 {[%clk 0:00:20]} 51. Kf7
{[%clk 0:00:08.5]} 51... Kc3 {[%clk 0:00:18.2]} 52. g5 {[%clk 0:00:08.8]} 52...
Rc7+ {[%clk 0:00:17.3]} 53. Kf6 {[%clk 0:00:08.2]} 53... Be7+ {[%clk 0:00:16.6]}
54. Kf5 {[%clk 0:00:07.9]} 54... a4 {[%clk 0:00:15.6]} 55. Rxb6 {[%clk
0:00:08.3]} 55... a3 {[%clk 0:00:15.4]} 56. Ra6 {[%clk 0:00:08.6]} 56... Rc5+
{[%clk 0:00:13.7]} 57. Ke4 {[%clk 0:00:06.3]} 57... Rxg5 {[%clk 0:00:13.5]} 58.
Bd5 {[%clk 0:00:05.5]} 58... Rg4+ {[%clk 0:00:12.6]} 59. Kf5 {[%clk 0:00:05.5]}
59... Rh4 {[%clk 0:00:11.7]} 60. Ke6 {[%clk 0:00:05.8]} 60... Bb4 {[%clk
0:00:11.7]} 61. c5 {[%clk 0:00:04.4]} 61... Bxc5 {[%clk 0:00:11.4]} 62. Kd7
{[%clk 0:00:04.3]} 62... Kd4 {[%clk 0:00:11.2]} 63. Bf7 {[%clk 0:00:03.4]} 63...
Rh7 {[%clk 0:00:11.1]} 64. Ke8 {[%clk 0:00:03.5]} 64... Rh8+ {[%clk 0:00:10.2]}
65. Kd7 {[%clk 0:00:03.4]} 65... Rh7 {[%clk 0:00:10.7]} 66. Ke8 {[%clk
0:00:03.6]} 66... Ke5 {[%clk 0:00:10.8]} 67. Kd7 {[%clk 0:00:04]} 67... Rxf7+
{[%clk 0:00:10.3]} 0-1

[Event "*** Titled Tuesday Blitz"]
[Site "Chess.com"]
[Date "2020.05.19"]
[Round "2"]
[White "SubrotaBiswas"]
[Black "econpower"]
[Result "0-1"]
[WhiteElo "2382"]
[BlackElo "2645"]
[TimeControl "180+1"]
[EndTime "12:19:50 PDT"]
[Termination "econpower won by resignation"]

1. d4 {[%clk 0:03:00.2]} 1... d6 {[%clk 0:03:00.5]} 2. c4 {[%clk 0:03:00.2]}
2... g6 {[%clk 0:03:00.7]} 3. Nc3 {[%clk 0:03:00.2]} 3... Bg7 {[%clk 0:03:01.4]}
4. e4 {[%clk 0:03:00.6]} 4... Nd7 {[%clk 0:03:01.9]} 5. g3 {[%clk 0:03:00.4]}
5... e5 {[%clk 0:03:02.2]} 6. d5 {[%clk 0:03:00.4]} 6... Ne7 {[%clk 0:03:02.2]}
7. Bg2 {[%clk 0:02:58.6]} 7... O-O {[%clk 0:03:02.2]} 8. Nf3 {[%clk 0:02:58.2]}
8... h6 {[%clk 0:03:01.6]} 9. Be3 {[%clk 0:02:54.2]} 9... f5 {[%clk 0:03:01.9]}
10. Qd2 {[%clk 0:02:54.4]} 10... Kh7 {[%clk 0:02:45.4]} 11. h4 {[%clk
0:02:53.8]} 11... Nc5 {[%clk 0:02:38.3]} 12. h5 {[%clk 0:02:51.1]} 12... g5
{[%clk 0:02:26]} 13. Nxg5+ {[%clk 0:02:40.4]} 13... hxg5 {[%clk 0:02:24.7]} 14.
Bxg5 {[%clk 0:02:41.3]} 14... Bf6 {[%clk 0:02:15.2]} 15. exf5 {[%clk 0:02:28]}
15... Bxf5 {[%clk 0:02:13.1]} 16. O-O {[%clk 0:02:13.4]} 16... Bxg5 {[%clk
0:02:06.3]} 17. Qxg5 {[%clk 0:02:14.3]} 17... Rg8 {[%clk 0:02:07.1]} 18. Qh4
{[%clk 0:02:10.7]} 18... Rg4 {[%clk 0:02:03.1]} 19. Qh2 {[%clk 0:02:02.7]} 19...
Rxc4 {[%clk 0:02:00.6]} 20. f4 {[%clk 0:01:59]} 20... exf4 {[%clk 0:01:55.5]}
21. Ne2 {[%clk 0:01:45.9]} 21... f3 {[%clk 0:01:34.7]} 22. Rxf3 {[%clk
0:01:39.7]} 22... Qg8 {[%clk 0:01:33.2]} 23. Raf1 {[%clk 0:01:37.9]} 23... Rf8
{[%clk 0:01:32.6]} 24. g4 {[%clk 0:01:30.6]} 24... Qxg4 {[%clk 0:01:31]} 25. Ng3
{[%clk 0:01:30.6]} 25... Rc2 {[%clk 0:01:23.9]} 26. Rf4 {[%clk 0:01:22.4]} 26...
Qg5 {[%clk 0:01:21.8]} 27. Kh1 {[%clk 0:01:20.4]} 27... Nd3 {[%clk 0:01:15.2]}
28. R4f3 {[%clk 0:00:59.8]} 28... Ne5 {[%clk 0:01:14.5]} 29. Rf4 {[%clk
0:01:00.1]} 29... Rg8 {[%clk 0:01:11]} 30. Rxf5 {[%clk 0:00:24.9]} 30... Nxf5
{[%clk 0:01:08.4]} 31. Rxf5 {[%clk 0:00:25.8]} 31... Qxg3 {[%clk 0:01:08]} 32.
Qxg3 {[%clk 0:00:26]} 32... Rxg3 {[%clk 0:01:07.9]} 33. Be4 {[%clk 0:00:26.9]}
33... Rc4 {[%clk 0:00:58.9]} 34. Rxe5+ {[%clk 0:00:26.3]} 34... Kh6 {[%clk
0:00:51.6]} 35. Re6+ {[%clk 0:00:27]} 35... Kxh5 {[%clk 0:00:51.8]} 36. Kh2
{[%clk 0:00:27.4]} 36... Rg5 {[%clk 0:00:50.2]} 37. Bf3+ {[%clk 0:00:25.8]}
37... Rgg4 {[%clk 0:00:49.5]} 38. Kh3 {[%clk 0:00:21.7]} 38... Kg5 {[%clk
0:00:46.2]} 39. Bxg4 {[%clk 0:00:20.9]} 39... Rxg4 {[%clk 0:00:47.1]} 40. Re7
{[%clk 0:00:21.8]} 40... Rc4 {[%clk 0:00:47.3]} 41. Kg3 {[%clk 0:00:21.9]} 41...
Kf5 {[%clk 0:00:47.8]} 42. Kf3 {[%clk 0:00:22]} 42... b5 {[%clk 0:00:46.9]} 43.
Ke3 {[%clk 0:00:21.8]} 43... Rc5 {[%clk 0:00:45.9]} 44. Kd4 {[%clk 0:00:21]}
44... a5 {[%clk 0:00:46.3]} 45. b3 {[%clk 0:00:21.2]} 45... a4 {[%clk
0:00:45.9]} 46. bxa4 {[%clk 0:00:20.2]} 46... bxa4 {[%clk 0:00:45.7]} 47. Re3
{[%clk 0:00:20.3]} 47... Rc2 {[%clk 0:00:44.6]} 48. Ra3 {[%clk 0:00:20.3]} 48...
Rd2+ {[%clk 0:00:45]} 49. Kc4 {[%clk 0:00:19.8]} 49... Ke5 {[%clk 0:00:45.5]}
50. Rxa4 {[%clk 0:00:19.5]} 50... Rd4+ {[%clk 0:00:45.3]} 51. Kb5 {[%clk
0:00:19]} 51... Rxa4 {[%clk 0:00:45.7]} 52. Kxa4 {[%clk 0:00:19.9]} 52... Kxd5
{[%clk 0:00:46.6]} 53. Kb5 {[%clk 0:00:19.6]} 53... c6+ {[%clk 0:00:45.7]} 54.
Kb6 {[%clk 0:00:19.9]} 54... c5 {[%clk 0:00:46.1]} 55. a4 {[%clk 0:00:20.5]}
55... c4 {[%clk 0:00:47]} 56. a5 {[%clk 0:00:21.4]} 56... c3 {[%clk 0:00:47.9]}
57. a6 {[%clk 0:00:22.3]} 57... c2 {[%clk 0:00:48.8]} 58. a7 {[%clk 0:00:23.2]}
58... c1=Q {[%clk 0:00:49.7]} 59. a8=Q+ {[%clk 0:00:24.1]} 59... Kd4 {[%clk
0:00:49.3]} 60. Qa4+ {[%clk 0:00:22.7]} 60... Qc4 {[%clk 0:00:49.5]} 61. Qd1+
{[%clk 0:00:22.4]} 61... Qd3 {[%clk 0:00:50]} 62. Qg1+ {[%clk 0:00:20.9]} 62...
Kd5 {[%clk 0:00:47.4]} 63. Qg8+ {[%clk 0:00:19.5]} 63... Kd4 {[%clk 0:00:45.6]}
64. Kc6 {[%clk 0:00:19.7]} 64... Qa6+ {[%clk 0:00:38.8]} 65. Kd7 {[%clk
0:00:19.4]} 65... d5 {[%clk 0:00:36.8]} 66. Qg1+ {[%clk 0:00:18.2]} 66... Kc3
{[%clk 0:00:36.4]} 67. Qc1+ {[%clk 0:00:18.1]} 67... Kb4 {[%clk 0:00:34]} 68.
Qb2+ {[%clk 0:00:18.3]} 68... Kc5 {[%clk 0:00:34]} 69. Qf2+ {[%clk 0:00:18.3]}
69... d4 {[%clk 0:00:33.7]} 70. Qc2+ {[%clk 0:00:18.8]} 70... Qc4 {[%clk
0:00:33.5]} 71. Qb2 {[%clk 0:00:18.7]} 71... d3 {[%clk 0:00:32.6]} 72. Ke7
{[%clk 0:00:18.6]} 72... Qe4+ {[%clk 0:00:32.3]} 73. Kd7 {[%clk 0:00:18.3]}
73... Qd4+ {[%clk 0:00:32.4]} 74. Qxd4+ {[%clk 0:00:17.8]} 74... Kxd4 {[%clk
0:00:32.5]} 0-1